[Event "CCT Airthings Masters Play-In 2023"]
[Site "Online"]
[Date "2023.02.03"]
[Round "4"]
[White "SergeiAza"]
[Black "Puranik, Abhimanyu"]
[Result "1-0"]
[ECO "C78"]
[WhiteElo "2514"]
[BlackElo "2596"]
[Annotator "TA"]
[PlyCount "123"]
[EventDate "2023.02.03"]
[EventType "swiss"]
[EventCountry "NET"]
[SourceTitle "playchess.com"]
[Source "ChessBase"]
[SourceQuality "1"]
[TimeControl "600+2"]

{[%evp 17,123,8,45,4,37,22,29,29,35,39,31,21,23,16,33,-10,0,0,9,-24,-6,-55,-56,-56,0,0,0,-3,-4,-11,-4,-4,7,9,170,20,28,48,36,-50,8,8,9,9,9,-20,-19,-129,-102,-129,-89,-121,-46,-46,-52,-49,150,160,156,159,173,173,148,118,114,77,97,27,29,0,0,0,0,0,12,10,30,32,39,0,0,0,0,0,0,0,0,0,52,0,0,0,33,35,41,8,8,0,32,0,3539,10,2590,3387,1414,1346,679,664]} 1. e4 {[%emt 0:00:03]} e5 {[%emt 0:00:05]} 2. Nf3 {[%emt 0:00:01]} Nc6 {[%emt 0:00:00]} 3. Bb5 {[%emt 0:00:01]} a6 {[%emt 0:00:01]} 4. Ba4 {[%emt 0:00:02]} Nf6 {[%emt 0:00:01]} 5. O-O {[%emt 0:00:01]} b5 {[%emt 0:00:02]} 6. Bb3 {[%emt 0:00:01]} Bb7 {[%emt 0:00:00]} 7. d3 {[%emt 0:00:03]} Bd6 {[%emt 0:00:05]} 8. a3 {[%emt 0:00:13]} O-O {[%emt 0:00:03]} 9. Nc3 {[%emt 0:00:09]} h6 {[%emt 0:00:14]} 10. Ne2 {[%emt 0:00:38] C78: Ruy Lopez: Archangelsk and Möller Defences.} Bc5 {[%emt 0:00:06]} 11. Ng3 {[%emt 0:00:07]} d5 {[%emt 0:00:36]} 12. exd5 {[%emt 0:01:52] White has an edge.} Nxd5 {[%emt 0:00:04] [#]} 13. c3 $146 {[%emt 0:00:03]} ({Predecessor:} 13. Re1 Re8 14. c3 Qd7 15. Nh4 Nf6 16. Nhf5 Bf8 17. Ba2 Nd8 18. Qc2 Bd5 19. Bb1 {1-0 Bon,M (2413)-Degardin,S (2282) Tremblay en France 2022 (6)}) 13... Re8 {[%emt 0:00:50]} 14. Ne4 {[%emt 0:00:03]} Be7 {[%emt 0:00:50]} 15. Re1 {[%emt 0:00:04]} Qd7 {[%emt 0:00:18]} 16. d4 {[%emt 0:01:05]} exd4 {[%emt 0:00:10]} 17. cxd4 {[%emt 0:00:01]} Rad8 {[%emt 0:00:20]} 18. Bd2 {[%emt 0:00:11]} Nf6 {[%emt 0:00:27]} 19. Nc5 {[%emt 0:00:31]} (19. Bc3 $11 {was preferrable.}) 19... Bxc5 $15 {[%emt 0:00:03]} 20. dxc5 {[%emt 0:00:03]} Ne4 {[%emt 0:01:32]} (20... Nd4 $15 21. Nxd4 Qxd4) 21. Be3 $1 $11 {[%emt 0:00:22]} Qf5 {[%emt 0:00:07][%csl LRc5,LRd1]} 22. Qc2 {[%emt 0:00:10]} Na5 {[%emt 0:01:18] With the idea ...Nxb3. Excellent horsemanship.} 23. Ba2 {[%emt 0:00:06]} Bd5 {[%emt 0:00:04]} 24. Bxd5 {[%emt 0:00:19]} Qxd5 {[%emt 0:00:01]} (24... Rxd5 $5 25. b4 Nc4 $11) 25. Bf4 {[%emt 0:00:32]} Qb3 $2 {[%emt 0:01:01]} (25... Nxc5 $2 26. Bxc7 Qc4 27. Qf5 $18) (25... Rc8 $11 {and Black has nothing to worry.}) 26. Rac1 {[%emt 0:00:45]} ({Weaker is} 26. Qxb3 Nxb3 27. Rab1 (27. Bxc7 $2 Rc8 $19) 27... Nexc5 $15) ({White has to play} 26. Qb1 $18) 26... Qxc2 {[%emt 0:00:12]} 27. Rxc2 {[%emt 0:00:00]} Nc4 {[%emt 0:00:28]} 28. c6 {[%emt 0:00:46]} ({Much worse is} 28. Bxc7 Rc8 29. b3 Nxa3 $11) ({White should play} 28. b3 $14 Nxa3 29. Rce2) 28... g5 {[%emt 0:00:30]} (28... Ng5 $15 29. Rxe8+ (29. Bxc7 $2 {is the wrong capture.} Nxf3+ {[%mdl 64] Remove Defender} 30. gxf3 Rxe1+ $19) 29... Rxe8) 29. Bxc7 {[%emt 0:00:14]} Rc8 $132 {[%emt 0:00:05][%mdl 2048] Black is not keeping still} 30. Bg3 {[%emt 0:00:11]} Rxc6 {[%emt 0:00:08]} 31. Rce2 {[%emt 0:00:08]} Rce6 {[%emt 0:00:04] White should prevent ...Nxg3.} 32. Bc7 {[%emt 0:01:07]} (32. b3 $11 {keeps the balance.} Nxa3 33. Nd4 Nxg3 34. Rxe6 fxe6 35. fxg3) 32... Nc5 {[%emt 0:00:24]} 33. Rxe6 {[%emt 0:00:15]} Rxe6 {[%emt 0:00:01]} 34. Rb1 {[%emt 0:00:19]} Nd3 {[%emt 0:00:18]} (34... Re2 $17 35. h4 Ne6) 35. b3 $1 $15 {[%emt 0:00:06]} Nxa3 {[%emt 0:00:02]} 36. Rd1 {[%emt 0:00:01]} Nc5 {[%emt 0:00:09]} (36... Rc6 $1 $15 {keeps the upper hand.} 37. Ba5 b4) 37. Bd6 $16 {[%emt 0:00:08]} Nxb3 {[%emt 0:00:15] [#] White must now prevent ...Nc4.} 38. Bxa3 {[%emt 0:00:01]} Na5 {[%emt 0:00:08]} 39. h4 {[%emt 0:00:05]} Nc4 {[%emt 0:00:01]} 40. Bb4 {[%emt 0:00:05] Rd8+ is the strong threat.} a5 {[%emt 0:00:02]} 41. Bc3 {[%emt 0:00:03]} b4 {[%emt 0:00:01]} 42. Ba1 {[%emt 0:00:15]} ({Better is} 42. Rd4 $16) 42... b3 $11 {[%emt 0:00:05]} 43. hxg5 {[%emt 0:00:07] [#] Strongly threatening Rd8+.} b2 {[%emt 0:00:03]} 44. Bxb2 {[%emt 0:00:02]} Nxb2 {[%emt 0:00:01][%mdl 4096] Endgame KRN-KRN} 45. Rd8+ {[%emt 0:00:02]} Kh7 {[%emt 0:00:04]} 46. Rd7 {[%emt 0:00:05]} Kg7 {[%emt 0:00:10]} 47. gxh6+ {[%emt 0:00:01]} Rxh6 {[%emt 0:00:01]} 48. Ra7 {[%emt 0:00:05] Prevents Ra6.} Rh5 {[%emt 0:00:01]} 49. g4 {[%emt 0:00:02]} Rd5 {[%emt 0:00:02]} 50. Kg2 {[%emt 0:00:00]} Nc4 {[%emt 0:00:01]} 51. Kg3 {[%emt 0:00:03]} Nd6 {[%emt 0:00:01]} 52. Nh4 {[%emt 0:00:03]} Rd4 {[%emt 0:00:03]} (52... Kf6 $11) 53. Ra6 {[%emt 0:00:04]} ({White should try} 53. Rxa5 $14 Ne4+ 54. Kg2) 53... Ne4+ {[%emt 0:00:02]} 54. Kg2 {[%emt 0:00:02]} Rd5 {[%emt 0:00:02]} 55. Nf5+ {[%emt 0:00:02]} Kh7 {[%emt 0:00:06]} 56. Rh6+ {[%emt 0:00:01]} Kg8 {[%emt 0:00:01]} 57. Ra6 {[%emt 0:00:03] Hoping for Ne7+.} Kh7 {[%emt 0:00:01]} 58. f3 {[%emt 0:00:01]} Nc3 {[%emt 0:00:03][%mdl 8192]} (58... Rd2+ $11 59. Kh3 Rd3) 59. Rf6 $2 {[%emt 0:00:02]} (59. Rh6+ $18 Kg8 60. Ne7+ Kf8 61. Nxd5 Nxd5 62. Ra6) 59... Kg8 $2 {[%emt 0:00:01][%mdl 8192]} (59... Rd7 $11) 60. Ne7+ $18 {[%emt 0:00:02] White is clearly winning.} Kg7 {[%emt 0:00:01]} 61. Nxd5 {[%emt 0:00:00]} Nxd5 {[%emt 0:00:01]} 62. Ra6 {[%emt 0:00:01] Weighted Error Value: White=0.33/Black=0.27 (precise)} 1-0

[Event "CCT Airthings Masters Play-In 2023"]
[Site "Online"]
[Date "2023.02.03"]
[Round "4"]
[White "vugarrasulov"]
[Black "Vladimir_"]
[Result "0-1"]
[ECO "E09"]
[WhiteElo "2514"]
[BlackElo "2341"]
[Annotator "TA"]
[PlyCount "54"]
[EventDate "2023.02.03"]
[EventType "swiss"]
[EventCountry "NET"]
[SourceTitle "playchess.com"]
[Source "ChessBase"]
[SourceQuality "1"]
[TimeControl "600+2"]

{[%evp 21,54,0,0,0,0,-83,0,0,0,0,7,0,0,0,0,0,0,-20,-22,-31,-34,-45,-54,-54,-29,-339,-345,-516,-511,-479,-328,-323,-323,-733,-722]} 1. d4 {[%emt 0:00:03]} d5 {[%emt 0:00:05]} 2. c4 {[%emt 0:00:01]} e6 {[%emt 0:00:02]} 3. Nf3 {[%emt 0:00:02]} Nf6 {[%emt 0:00:01]} 4. g3 {[%emt 0:00:01]} Be7 {[%emt 0:00:03]} 5. Bg2 {[%emt 0:00:00]} O-O {[%emt 0:00:01]} 6. O-O {[%emt 0:00:00]} c6 {[%emt 0:00:05]} 7. Qc2 {[%emt 0:00:02]} b6 {[%emt 0:00:10]} 8. Nbd2 {[%emt 0:00:02]} Nbd7 {[%emt 0:00:11]} 9. b3 {[%emt 0:00:11]} Bb7 {[%emt 0:00:21]} 10. e4 {[%emt 0:00:08]} dxe4 {[%emt 0:00:13]} 11. Nxe4 {[%emt 0:00:00]} c5 {[%emt 0:00:01]} 12. Nxf6+ {[%emt 0:01:40] E09: Closed Catalan: Main Line: 7 Qc2 c6 8 Nbd2.} Bxf6 {[%emt 0:00:13]} 13. Rd1 {[%emt 0:00:37] [#]} (13. Bb2 $11) 13... cxd4 {[%emt 0:00:31]} ({Better is} 13... Bxf3 $1 $17 14. Bxf3 Bxd4) 14. Nxd4 $11 {[%emt 0:00:21] The position is equal.} Bxg2 {[%emt 0:00:03]} 15. Kxg2 {[%emt 0:00:00] [#]} Qc7 $146 {[%emt 0:00:16]} ({Predecessor:} 15... Qc8 16. Rb1 Qb7+ 17. f3 Rfd8 18. Be3 Ne5 19. Qe4 Qxe4 20. fxe4 Rd7 21. Nc2 Rad8 22. Rxd7 Rxd7 {½-½ Aramil,W (2251)-De Guzman,R (2379) Las Vegas Millionaire op 2014 (7)}) 16. Qe4 {[%emt 0:00:07]} Nc5 {[%emt 0:00:15]} 17. Qf3 {[%emt 0:00:03]} e5 {[%emt 0:00:47][%cal Be6e5,Be5e4][%mdl 32]} 18. Nb5 {[%emt 0:00:07]} Qe7 $36 {[%emt 0:00:01][%mdl 2048] Black fights for an advantage.} 19. Rb1 {[%emt 0:00:28]} e4 {[%emt 0:00:13]} 20. Qg4 {[%emt 0:00:14]} Be5 {[%emt 0:00:14]} 21. Ba3 {[%emt 0:00:12]} f5 {[%emt 0:00:04]} 22. Qe2 {[%emt 0:00:11]} Qf6 {[%emt 0:00:49]} 23. Bb2 $2 {[%emt 0:00:41][%mdl 8192] This costs White the game.} (23. Bxc5 $11 {and White has nothing to worry.} bxc5 24. Kh1) 23... f4 $19 {[%emt 0:00:10] [#] Threatens to win with ...f3+.} 24. gxf4 {[%emt 0:00:50]} (24. Kh1 {only move.} Bxb2 25. Qxb2 Qxb2 26. Rxb2) 24... Bxb2 {[%emt 0:00:14]} (24... Qxf4 25. Bxe5 Qxe5 26. Qe3 $19) 25. Qxb2 {[%emt 0:00:18]} Qg6+ {[%emt 0:00:21]} 26. Kh1 {[%emt 0:00:02]} Nd3 {[%emt 0:00:02]} ({Inferior is} 26... Rxf4 27. Qd4 Raf8 28. Rg1 $17) 27. Qd2 {[%emt 0:00:10]} (27. Qd4 Rad8 28. Qe3 (28. Rg1 $2 Qh6 $19)) 27... Rxf4 {[%emt 0:00:04] Weighted Error Value: White=0.90/Black=0.22 (precise)} ({Weaker is} 27... Nxf4 28. Rg1 Qc6 29. Qd6 $17) 0-1

[Event "CCT Airthings Masters Play-In 2023"]
[Site "Online"]
[Date "2023.02.03"]
[Round "4"]
[White "Blomqvist, Erik"]
[Black "Cayse"]
[Result "1/2-1/2"]
[ECO "C77"]
[WhiteElo "2510"]
[BlackElo "2579"]
[Annotator "TA"]
[PlyCount "88"]
[EventDate "2023.02.03"]
[EventType "swiss"]
[EventCountry "NET"]
[SourceTitle "playchess.com"]
[Source "ChessBase"]
[SourceQuality "1"]
[TimeControl "600+2"]

{[%evp 16,88,4,5,10,10,8,8,11,8,8,8,8,9,15,14,17,12,14,12,10,0,5,5,26,0,27,32,27,0,25,-16,9,0,0,-2,0,0,0,0,0,0,0,0,0,0,0,0,0,0,0,0,23,15,51,43,58,53,65,83,78,65,79,64,86,86,113,113,113,0,77,0,63,0,83]} 1. e4 {[%emt 0:00:03]} e5 {[%emt 0:00:04]} 2. Nf3 {[%emt 0:00:04]} Nc6 {[%emt 0:00:01]} 3. Bb5 {[%emt 0:00:03][%cal Bf1b5,Bb5a4,Ba4b3][%mdl 32]} a6 {[%emt 0:00:01]} 4. Ba4 {[%emt 0:00:01]} Nf6 {[%emt 0:00:02]} 5. O-O {[%emt 0:00:01]} Be7 {[%emt 0:00:02]} 6. d3 {[%emt 0:00:01]} b5 {[%emt 0:00:03]} 7. Bb3 {[%emt 0:00:00]} O-O {[%emt 0:00:06]} 8. Nc3 {[%emt 0:00:02]} d6 {[%emt 0:00:02]} 9. a3 {[%emt 0:00:01]} Na5 {[%emt 0:00:03] C77: Ruy Lopez: 3...a6 4 Ba4 Nf6, unusual lines.} 10. Ba2 {[%emt 0:00:01]} Be6 {[%emt 0:00:00]} 11. b4 {[%emt 0:00:09]} Bxa2 {[%emt 0:00:06]} 12. Rxa2 {[%emt 0:00:04]} Nc6 {[%emt 0:00:01]} 13. Bg5 {[%emt 0:00:01]} Qd7 {[%emt 0:00:19]} 14. Bxf6 {[%emt 0:00:12]} Bxf6 {[%emt 0:00:00]} 15. Nd5 {[%emt 0:00:02]} a5 {[%emt 0:00:02]} 16. Rb2 {[%emt 0:00:05]} axb4 {[%emt 0:00:17]} 17. axb4 {[%emt 0:00:02]} Bd8 {[%emt 0:01:20] [#]} 18. Qb1 $146 {[%emt 0:00:23]} ({Predecessor:} 18. c4 Nd4 19. Nxd4 exd4 20. Qc2 c6 21. Nf4 Qb7 22. cxb5 Qxb5 23. Ne2 Bf6 24. g3 {½-½ Nepomniachtchi,I (2773)-Ding,L (2799) Airthings Masters Prelim rapid 2022 (14)}) 18... Ne7 {[%emt 0:00:32]} 19. Ra2 {[%emt 0:00:07]} Qc6 {[%emt 0:00:48]} 20. c4 {[%emt 0:00:23]} Qb7 {[%emt 0:00:34]} 21. Rxa8 {[%emt 0:00:25]} Qxa8 {[%emt 0:00:02]} 22. Qb2 {[%emt 0:00:06]} ({Much worse is} 22. cxb5 Nxd5 23. exd5 Qxd5 $17) 22... Qb7 {[%emt 0:00:47]} 23. Ra1 {[%emt 0:00:10]} c6 {[%emt 0:00:59]} 24. Nxe7+ {[%emt 0:00:02]} Bxe7 {[%emt 0:00:02]} 25. Qa2 {[%emt 0:00:34]} Rb8 {[%emt 0:00:06]} 26. g3 {[%emt 0:00:55]} h6 {[%emt 0:00:21]} 27. Qa7 {[%emt 0:01:16]} Bf8 {[%emt 0:00:46]} 28. Qxb7 {[%emt 0:00:20]} Rxb7 $11 {[%emt 0:00:00][%mdl 4096] Endgame KRB-KRN} 29. Ra6 {[%emt 0:01:16]} bxc4 {[%emt 0:00:04]} 30. dxc4 {[%emt 0:00:01]} Rxb4 {[%emt 0:00:03]} 31. Rxc6 {[%emt 0:00:02]} g6 {[%emt 0:00:01]} 32. Rc7 {[%emt 0:00:34]} Rb3 {[%emt 0:00:19]} 33. Kg2 {[%emt 0:00:02][%cal Oc4c5]} Rc3 {[%emt 0:00:03]} 34. h4 {[%emt 0:00:35][%cal Oh4h5]} Kg7 {[%emt 0:00:43] [#]} 35. h5 $1 {[%emt 0:00:08] aiming for hxg6.} Kf6 {[%emt 0:00:03]} 36. Nh2 {[%emt 0:00:49]} gxh5 {[%emt 0:00:40]} 37. Nf1 $1 {[%emt 0:00:01]} Rb3 {[%emt 0:00:38]} 38. Ne3 {[%emt 0:00:03][%mdl 1024] White has strong compensation.} Rb8 {[%emt 0:00:02]} 39. Nf5 {[%emt 0:00:26]} Kg6 {[%emt 0:00:17]} 40. Kh3 {[%emt 0:00:30]} Ra8 {[%emt 0:00:02]} 41. Rc6 {[%emt 0:00:09] White has more active pieces.} Kg5 {[%emt 0:00:06]} 42. Rc7 {[%emt 0:00:53]} ({Of course not} 42. Nxd6 $6 Bxd6 43. Rxd6 Ra2 $11) 42... Kg6 $1 {[%emt 0:00:03]} 43. Rc6 {[%emt 0:00:01][%cal Oc4c5]} Kg5 $1 {[%emt 0:00:01]} 44. Rc7 {[%emt 0:00:05]} Kg6 $1 {[%emt 0:00:02] Weighted Error Value: White=0.11 (very precise) /Black=0.08 (flawless)} 1/2-1/2

[Event "CCT Airthings Masters Play-In 2023"]
[Site "Online"]
[Date "2023.02.03"]
[Round "4"]
[White "Mitrabha, Guha"]
[Black "GadimbayliA"]
[Result "1-0"]
[ECO "A28"]
[WhiteElo "2510"]
[BlackElo "2677"]
[Annotator "TA"]
[PlyCount "173"]
[EventDate "2023.02.03"]
[EventType "swiss"]
[EventCountry "NET"]
[SourceTitle "playchess.com"]
[Source "ChessBase"]
[SourceQuality "1"]
[TimeControl "600+2"]

{[%evp 9,173,0,5,7,14,9,12,9,8,17,15,9,9,15,8,14,11,12,18,0,0,0,7,7,7,7,7,7,7,7,11,7,8,8,22,13,37,21,87,24,29,21,45,30,52,16,15,15,17,18,18,46,55,0,0,0,0,0,0,0,0,0,0,0,0,0,0,0,0,0,0,0,0,0,535,535,530,523,515,470,464,448,483,0,0,0,111,268,306,295,545,533,466,625,889,499,499,0,188,0,562,4,12841,12841,12841,12842,12842,12843,12844,12844,12845,12846,12846,12847,12847,12843,12845,12845,12845,12846,12847,12847,12848,12847,12847,12847,12849,12849,12850,12847,12850,12846,12850,27999,27999,27999,27999,27999,27999,27999,27999,27999,27999,27999,27999,27999,27999,27999,27999,27999,27999,27999,27999,27999,27999,27999,27999,27999,27999,27999,27999,27999,27999,27999,27999,27999]} 1. c4 {[%emt 0:00:08]} Nf6 {[%emt 0:00:10]} 2. Nc3 {[%emt 0:00:02]} e5 {[%emt 0:00:01]} 3. Nf3 {[%emt 0:00:02]} Nc6 {[%emt 0:00:03]} 4. e4 {[%emt 0:00:01]} Bb4 {[%emt 0:00:04]} 5. d3 {[%emt 0:00:01]} d6 {[%emt 0:00:14]} 6. a3 {[%emt 0:00:02] A28: English Opening: Four Knights Variation.} Bc5 {[%emt 0:00:00] 6...Bc5 scores better than 6...Bxc3+.} 7. b4 {[%emt 0:00:02]} Bb6 {[%emt 0:00:02]} 8. Be3 {[%emt 0:00:02] The position is equal.} Bg4 {[%emt 0:00:01]} 9. Be2 {[%emt 0:00:01]} Bxf3 {[%emt 0:00:01]} 10. Bxf3 {[%emt 0:00:01]} Nd4 {[%emt 0:00:05]} 11. O-O {[%emt 0:00:03]} O-O {[%emt 0:00:03]} 12. Na4 {[%emt 0:00:02]} Nxf3+ {[%emt 0:00:01]} 13. Qxf3 {[%emt 0:00:01]} Bxe3 {[%emt 0:00:01]} 14. fxe3 {[%emt 0:00:01]} c6 {[%emt 0:00:40]} 15. Nc3 {[%emt 0:00:02]} a5 {[%emt 0:00:09]} 16. b5 {[%emt 0:00:02] [#]} Nd7 $146 {[%emt 0:00:07]} ({Predecessor:} 16... Qd7 17. a4 Rad8 18. Rab1 d5 19. Qg3 Qe6 20. exd5 cxd5 21. Rxf6 Qxf6 22. Nxd5 Qe6 {1-0 Oparin,G (2683)-Lashkin,J (2399) Titled Tuesday intern op 05th Jul Late blitz 2022 (9)}) 17. Rf2 {[%emt 0:00:55]} a4 {[%emt 0:00:24]} 18. Qe2 {[%emt 0:00:13]} Qa5 {[%emt 0:00:10]} 19. Qc2 {[%emt 0:00:12]} Rfc8 {[%emt 0:01:59]} 20. Rb1 {[%emt 0:00:05]} Nc5 {[%emt 0:00:29]} 21. Rb4 {[%emt 0:00:07]} Ne6 {[%emt 0:01:38]} 22. Rf3 {[%emt 0:01:16]} (22. Qxa4 Qxa4 23. Rxa4 (23. Nxa4 $2 c5 $19) 23... Rxa4 24. Nxa4 Ra8 $15) 22... h5 {[%emt 0:01:30]} 23. h3 {[%emt 0:00:13]} (23. Qxa4 Qxa4 24. Rxa4 (24. Nxa4 $2 c5 $19) 24... Rxa4 25. Nxa4 Ra8 $17) 23... Nc7 {[%emt 0:00:13]} (23... Rf8 $11) 24. Qb2 {[%emt 0:02:05] White is more active.} (24. Qxa4 Qxa4 25. Rxa4 (25. Nxa4 $2 c5 $19) 25... cxb5 26. cxb5 (26. Rxa8 Rxa8 27. a4 b4 $17) 26... Rxa4 27. Nxa4 Ra8 $17) (24. Rxa4 $16 Qb6 25. Qf2) 24... Ne6 $1 $11 {[%emt 0:00:59]} 25. Kh2 {[%emt 0:00:18]} h4 {[%emt 0:00:17]} 26. Rxa4 {[%emt 0:01:00]} Qb6 {[%emt 0:00:01]} 27. Rb4 {[%emt 0:01:34] Strongly threatening bxc6.} Ng5 {[%emt 0:00:02]} 28. bxc6 {[%emt 0:00:00]} Nxf3+ {[%emt 0:00:01]} 29. gxf3 {[%emt 0:00:02]} Qxc6 {[%emt 0:00:05]} 30. Nd5 {[%emt 0:00:01]} (30. Rxb7 $2 Rxa3 31. Rb6 (31. Qxa3 $2 Qxb7 32. Nb5 Ra8 $19) (31. Nd5 $2 Qa6 $19) 31... Qa8 $19) 30... Re8 {[%emt 0:00:32] Repels Ne7+} 31. Rxb7 {[%emt 0:00:12]} (31. f4 $14) 31... Qxb7 {[%emt 0:00:48]} 32. Qxb7 {[%emt 0:00:02]} Reb8 $1 {[%emt 0:00:00]} 33. Qd7 {[%emt 0:00:35]} Rxa3 {[%emt 0:00:09] ( -> ...Rb2+)} 34. Nb6 {[%emt 0:00:38]} Ra2+ {[%emt 0:00:01]} 35. Kg1 {[%emt 0:00:01]} Rb2 {[%emt 0:00:00]} 36. Na4 {[%emt 0:00:04]} (36. Qxd6 $2 R2xb6 37. Qxe5 Rb1+ 38. Kg2 R8b2+ $19) (36. Nd5 $2 Rb1+ 37. Kh2 R8b2#) 36... Rc2 {[%emt 0:00:01][%cal Rb8b1]} 37. Nb6 $1 {[%emt 0:00:11]} Rb2 $1 {[%emt 0:00:00]} (37... Rc1+ $2 38. Kf2 Rb1 39. Na4 $18 (39. Qxd6 R1xb6 40. Qxe5 Rb2+ 41. Ke1 R8b3 $11)) 38. f4 {[%emt 0:00:31]} R2xb6 {[%emt 0:00:05][%mdl 4096] Endgame KQ-KRR} 39. Kf2 {[%emt 0:00:03]} Rb1 {[%emt 0:00:10]} 40. Qxd6 {[%emt 0:00:11]} R8b2+ {[%emt 0:00:01]} 41. Kf3 {[%emt 0:00:01] Black must now prevent Qd8+.} exf4 $2 {[%emt 0:00:01][%mdl 8192]} (41... Kh7 $11 {and Black has nothing to worry.} 42. Qxe5 (42. fxe5 Rg1 43. e6 Rf1+ 44. Kg4 Rg2+ 45. Kh5 g6+ 46. Kxh4 g5+ 47. Kh5 Rh1) 42... Rf1+ 43. Kg4 Rg2+ 44. Kh5 (44. Kxh4 Rfg1 $11) 44... Rfg1) 42. Qd8+ $18 {[%emt 0:00:01]} Kh7 {[%emt 0:00:01]} 43. Qxh4+ {[%emt 0:00:01]} Kg8 {[%emt 0:00:00]} 44. Kxf4 {[%emt 0:00:09]} f6 {[%emt 0:00:01]} 45. Kf5 {[%emt 0:00:04]} (45. Qh5 Rf1+ 46. Kg3 Rg1+ 47. Kf3 Rf1+ 48. Kg3 Rg1+ 49. Kf3 Rf1+ 50. Kg3 $11) 45... Rb6 {[%emt 0:00:02]} 46. c5 $2 {[%emt 0:00:06]} (46. e5 $18) 46... Rf1+ $11 {[%emt 0:00:02]} 47. Kg4 $1 {[%emt 0:00:01]} Rb2 {[%emt 0:00:03]} (47... Rb3 $11) 48. Qg3 $16 {[%emt 0:00:06]} (48. Qh5 Rg2+ 49. Kh4 g5+) 48... Rc2 {[%emt 0:00:01]} 49. d4 {[%emt 0:00:01]} Kh7 $2 {[%emt 0:00:02]} (49... Kh8 {was called for.} 50. Kh4 Rc3) 50. Kh5 $18 {[%emt 0:00:02][%cal Oc5c6] And now c6! would win.} Rff2 {[%emt 0:00:05] Hoping for ...Rg2.} 51. Qg6+ {[%emt 0:00:01]} Kh8 {[%emt 0:00:02] [#]} 52. c6 $1 {[%emt 0:00:03]} Rg2 {[%emt 0:00:03]} 53. Qe8+ {[%emt 0:00:02]} (53. Qf7 $1 {Threatens to win with c7.} Rc3 54. c7) 53... Kh7 {[%emt 0:00:00] [#]} 54. Qd7 $2 {[%emt 0:00:04]} (54. Kh4 $1 $18 Rxc6 55. Qh5+ (55. Qxc6 $2 Kh6 $19) 55... Kg8 56. Qd5+ Kh7 57. e5 (57. Qxc6 Kh6)) 54... Rg5+ $11 {[%emt 0:00:03]} 55. Kh4 {[%emt 0:00:01] c7 would be deadly.} Re2 $2 {[%emt 0:00:05][%mdl 8192]} (55... Kh6 $11 56. Qd8 Rcg2 57. Qh8+ Kg6 58. Qe8+ (58. c7 $2 R5g4+ 59. hxg4 Rh2+ {[%mdl 64] Skewer} 60. Kg3 Rxh8 $19) 58... Kh7) 56. c7 $18 {[%emt 0:00:03]} Rxe3 {[%emt 0:00:03]} 57. c8=Q {[%emt 0:00:01] Qde8 would kill now.} (57. c8=B $2 {too greedy.} Rxe4+ $19) 57... Rxe4+ {[%emt 0:00:00]} 58. Qg4 {[%emt 0:00:00]} Rgxg4+ {[%emt 0:00:01]} 59. hxg4 {[%emt 0:00:00]} Rxd4 {[%emt 0:00:00] KQ-KR} 60. Qf5+ {[%emt 0:00:01]} Kg8 {[%emt 0:00:01]} 61. Kh5 {[%emt 0:00:05]} Kf7 {[%emt 0:00:02]} 62. Qg6+ {[%emt 0:00:03]} Kf8 {[%emt 0:00:01]} 63. Qc2 {[%emt 0:00:04]} Rd5+ {[%emt 0:00:02] [#]} 64. Kg6 $1 {[%emt 0:00:03]} Rg5+ {[%emt 0:00:01]} 65. Kh7 {[%emt 0:00:00]} Kf7 {[%emt 0:00:01]} 66. Qc8 {[%emt 0:00:02]} Ke7 {[%emt 0:00:05]} 67. Qc4 {[%emt 0:00:02]} Kf8 {[%emt 0:00:04]} 68. Qe6 {[%emt 0:00:02]} Re5 {[%emt 0:00:06]} 69. Qc8+ {[%emt 0:00:01]} Kf7 {[%emt 0:00:02]} 70. Qg8+ {[%emt 0:00:01]} Ke7 {[%emt 0:00:01]} 71. Qxg7+ {[%emt 0:00:01]} ({Stronger than} 71. Kxg7 Rg5+ 72. Kh8 Rxg8+ 73. Kxg8 Kd6 $11) 71... Ke6 {[%emt 0:00:00] White mates.} 72. Qb7 {[%emt 0:00:04]} Rg5 {[%emt 0:00:01]} 73. Qe4+ {[%emt 0:00:01]} Kf7 {[%emt 0:00:01]} 74. Qc4+ {[%emt 0:00:02]} Ke7 {[%emt 0:00:01]} 75. Kh6 {[%emt 0:00:02]} Re5 {[%emt 0:00:04]} 76. Qc7+ {[%emt 0:00:03]} Ke6 {[%emt 0:00:02]} 77. Qc8+ {[%emt 0:00:02]} Ke7 {[%emt 0:00:01]} 78. Qb7+ {[%emt 0:00:03]} Ke6 {[%emt 0:00:01]} 79. Qg7 {[%emt 0:00:02]} Rc5 {[%emt 0:00:08]} 80. Qg6 {[%emt 0:00:03]} Re5 {[%emt 0:00:01]} 81. Qe8+ {[%emt 0:00:02]} Kd5 {[%emt 0:00:01]} 82. Qf7+ {[%emt 0:00:01]} Re6 {[%emt 0:00:02]} 83. Kg6 {[%emt 0:00:01]} Ke5 {[%emt 0:00:00]} 84. Qc7+ {[%emt 0:00:01]} Kd5 {[%emt 0:00:02]} 85. Kf5 {[%emt 0:00:04]} Re1 {[%emt 0:00:03]} 86. Qd7+ {[%emt 0:00:01]} Kc5 {[%emt 0:00:01]} 87. Kxf6 {[%emt 0:00:01] Beautiful play by Mitrabha!   Weighted Error Value: White=0.31/Black=0.28 (precise)} 1-0